[Event "Frauenbundesliga 2021-22"]
[Site "Germany"]
[Date "2022.05.26"]
[Round "3.5"]
[White "Just, Anita"]
[Black "Miturova, Magdalena"]
[Result "0-1"]
[ECO "C59"]
[WhiteElo "1895"]
[BlackElo "2217"]
[Annotator "TA"]
[PlyCount "114"]
[EventDate "2021.11.26"]
[EventType "team-tourn"]
[EventCountry "GER"]
[SourceTitle "playchess.com"]
[Source "ChessBase"]
[SourceQuality "1"]
[WhiteTeam "Leipzig"]
[BlackTeam "Rodewisch"]
[TimeControl "40/5400+30:1800+30"]

{[%evp 20,114,-3,-35,-3,-33,-41,-26,-45,-63,-48,-54,-51,-103,-85,-103,14,0,34,36,32,0,1,0,0,-333,-276,-362,-360,-365,-360,-513,-512,-578,-545,-509,-522,-497,-533,-499,-464,-549,-532,-516,-486,-608,-559,-718,-693,-786,-773,-787,-770,-29989,-1202,-1114,-1049,-909,-659,-582,-615,-601,-536,-606,-541,-879,-459,-459,-458,-449,-443,-440,-435,-796,-625,-652,-429,-1312,-579,-12841,-1533,-1384,-1267,-12837,-1924,-12841,-12842,-12842,-12843,-12843,-12843,-12846,-12847,-12847,-12847,-12847,-12842]} 1. e4 {[%emt 0:00:03]} e5 {[%emt 0:00:07]} 2. Nf3 {[%emt 0:00:06]} Nc6 {[%emt 0:00:06]} 3. Bc4 {[%emt 0:00:09]} Nf6 {[%emt 0:00:08]} 4. Ng5 {[%emt 0:00:49]} d5 {[%emt 0:00:09]} 5. exd5 {[%emt 0:00:06]} Na5 {[%emt 0:00:05]} 6. Bb5+ {[%emt 0:00:05]} c6 {[%emt 0:00:05]} 7. dxc6 {[%emt 0:00:04]} bxc6 {[%emt 0:00:06]} 8. Be2 {[%emt 0:00:05]} h6 {[%emt 0:00:30]} 9. Nf3 {[%emt 0:00:09]} e4 {[%emt 0:00:18]} 10. Ne5 {[%emt 0:00:06]} Bc5 {[%emt 0:00:33]} 11. c3 {[%emt 0:01:02]} Bd6 {[%emt 0:00:29] C59: Two Knights: 4 Ng5 d5 5 exd5 Na5 5 Bb5+ c6 6 dxc6 bxc6 7 Be2.} (11... Qc7 $5 {[%cal Rc7e5]} 12. d4 exd3 13. Nxd3 Bd6 $11) 12. d4 {[%emt 0:00:53]} exd3 $1 {[%emt 0:01:01]} 13. Nxd3 {[%emt 0:00:07][%cal Be5d3,Bd3e1,Be1f3,Bf3h4][%mdl 32]} Qc7 {[%emt 0:04:53] Black has an edge.} 14. h3 {[%emt 0:01:51]} O-O {[%emt 0:00:34][%mdl 1024] Black has compensation.} 15. O-O {[%emt 0:01:20]} Bf5 {[%emt 0:08:16] Strongly threatening ...Rad8.} 16. Nd2 {[%emt 0:02:11]} (16. b4 $15 Nc4 17. Nf4) 16... Rad8 $17 {[%emt 0:11:36]} 17. Ne1 {[%emt 0:04:01] [#]} c5 $146 {[%emt 0:11:31] Black is much more active. The white rooks are badly placed.} (17... Rfe8) (17... Rfe8 $1 $17 {Hoping for ...Bh2+.} 18. Nef3 Bc5) ({Predecessor:} 17... Bf4 18. Nef3 Ne4 19. Nd4 c5 20. Nxf5 Nxd2 21. Qa4 Qe5 22. Bxd2 Rxd2 23. Bg4 Qc7 {0-1 (38) Mitypov,B (2243)-Dashibalov,E (2365) Ulan-Ude 2013}) 18. Nef3 {[%emt 0:02:50] Inhibits Bh2+.} Rfe8 {[%emt 0:02:58][%cal Bf8e8,Be8e6,Be6a6][%mdl 32]} (18... Qc6) 19. Bb5 {[%emt 0:05:37]} Re6 {[%emt 0:07:48][%cal Oa7a6]} 20. Qa4 {[%emt 0:06:33]} Nd5 {[%emt 0:03:44][%cal Of5h3]} 21. Nh4 {[%emt 0:18:47]} Bh7 {[%emt 0:04:39][%cal Oa7a6] White must now prevent ...a6!} 22. Qg4 $2 {[%emt 0:04:22][%mdl 8192] Black converts the advantage convincingly.} (22. Nhf3 $11 {and White is okay.}) 22... a6 $19 {[%emt 0:07:31]} 23. Bxa6 {[%emt 0:13:27]} Bh2+ {[%emt 0:11:44][%mdl 64] Discovered Attack} 24. Kh1 {[%emt 0:00:09]} Rxa6 {[%emt 0:00:25]} 25. g3 {[%emt 0:01:56]} (25. Nf5 {keeps fighting.} Rg6 26. Qh4) 25... Nf6 {[%emt 0:02:27]} 26. Qf3 {[%emt 0:10:30] [#]} Rxd2 $1 {[%emt 0:07:14][%mdl 512]} 27. Kxh2 {[%emt 0:04:52]} Rd3 {[%emt 0:00:35]} 28. Bf4 {[%emt 0:06:48]} Qd7 {[%emt 0:01:11]} ({Don't go for} 28... Rxf3 $2 29. Bxc7 Rd3 30. Bxa5 Rxa5 31. a4 $19) 29. Rad1 {[%emt 0:03:47]} c4 {[%emt 0:08:15]} ({Wrong is} 29... Rxf3 $2 30. Rxd7 Rxf2+ 31. Rxf2 $19) 30. Be3 {[%emt 0:02:36]} Nc6 {[%emt 0:01:13]} 31. Rxd3 {[%emt 0:10:39]} Bxd3 {[%emt 0:00:24]} 32. Ra1 {[%emt 0:00:00]} Ne5 {[%emt 0:01:32]} 33. Qf4 {[%emt 0:00:00]} Re6 {[%emt 0:00:50] aiming for ...g5.} 34. Qd4 {[%emt 0:00:00]} Qb7 {[%emt 0:02:24]} 35. b4 {[%emt 0:00:00]} g5 {[%emt 0:01:15]} 36. f4 {[%emt 0:00:53]} gxh4 {[%emt 0:01:06]} (36... Nf3+ $142 37. Nxf3 Qxf3 38. Re1 Nd5 39. Qxd5 Qxd5 40. fxg5 Qf3 41. g4 Be4 42. Re2 Qxe2+ 43. Kg3 Qxe3+ 44. Kh4 Bg2 45. gxh6 Rxh6#) 37. fxe5 {[%emt 0:00:26] Black is clearly winning.} hxg3+ {[%emt 0:00:25]} 38. Kxg3 {[%emt 0:01:12]} Ne4+ {[%emt 0:00:05]} 39. Kh2 {[%emt 0:00:27]} Rg6 {[%emt 0:00:35][%cal Oe4d2]} 40. Rg1 {[%emt 0:00:21]} Rxg1 {[%emt 0:00:56]} 41. Kxg1 {[%emt 0:30:25]} Qc6 {[%emt 0:02:05]} 42. Kh2 {[%emt 0:00:00]} Qg6 {[%emt 0:02:13]} 43. Bf4 {[%emt 0:00:00] Prevents Qg3+.} Bf1 {[%emt 0:08:56][%csl Gf1][%cal Rg6g2]} 44. Qg1 {[%emt 0:00:00] Prevents Qg2+.} Qxg1+ {[%emt 0:00:27]} 45. Kxg1 {[%emt 0:00:00]} Bxh3 {[%emt 0:00:10]} 46. Bxh6 {[%emt 0:00:00]} (46. b5 $142) 46... Kh7 {[%emt 0:02:39]} 47. Be3 {[%emt 0:00:00]} Nxc3 {[%emt 0:00:09]} 48. a3 {[%emt 0:00:00]} (48. b5 $142) 48... Kg6 {[%emt 0:00:59]} (48... Bd7 $142 49. Kf2 Kg6) 49. Kf2 {[%emt 0:00:00]} Bd7 {[%emt 0:05:14]} (49... Nd1+ $142 50. Ke2 Nc3+ 51. Ke1 Bd7) 50. Bd4 {[%emt 0:00:00]} Nd5 {[%emt 0:02:44] ...c3 is the strong threat.} 51. Ke2 {[%emt 0:00:00]} Kf5 {[%emt 0:00:12] And now ...Ke4 would win.} 52. Kd2 {[%emt 0:00:00]} Ke4 {[%emt 0:00:24]} 53. Bg1 {[%emt 0:00:40]} Kxe5 {[%emt 0:00:33]} 54. Ba7 {[%emt 0:00:47]} Ke4 {[%emt 0:00:20]} 55. Bg1 {[%emt 0:00:47]} c3+ {[%emt 0:01:01]} 56. Kc1 {[%emt 0:00:53]} Kd3 {[%emt 0:00:15] ( -> ...Nf4)} 57. Bh2 {[%emt 0:00:19] Against Nf4} Nb6 {[%emt 0:00:47] Weighted Error Value: White=1.37/Black=0.65} 0-1

[Event "Frauenbundesliga 2021-22"]
[Site "Germany"]
[Date "2022.05.26"]
[Round "3.6"]
[White "Kubikova, Alena"]
[Black "Von Herman, Brigitte"]
[Result "1-0"]
[ECO "C85"]
[WhiteElo "2093"]
[BlackElo "1929"]
[Annotator "TA"]
[PlyCount "59"]
[EventDate "2021.11.26"]
[EventType "team-tourn"]
[EventCountry "GER"]
[SourceTitle "playchess.com"]
[Source "ChessBase"]
[SourceQuality "1"]
[WhiteTeam "Rodewisch"]
[BlackTeam "Leipzig"]
[TimeControl "40/5400+30:1800+30"]

{[%evp 18,59,0,0,8,-15,20,16,18,0,0,0,0,-2,172,165,168,145,145,122,127,131,125,135,141,96,149,131,168,154,199,205,372,372,498,394,437,343,323,325,343,326,662,661]} 1. e4 {[%emt 0:00:05]} e5 {[%emt 0:00:05]} 2. Nf3 {[%emt 0:00:06]} Nc6 {[%emt 0:00:05]} 3. Bb5 {[%emt 0:00:23]} a6 {[%emt 0:00:09]} 4. Ba4 {[%emt 0:00:10]} Nf6 {[%emt 0:00:08][%cal Bg8f6,Bf6d7,Bd7c5][%mdl 32]} 5. O-O {[%emt 0:00:38]} Be7 {[%emt 0:01:43]} 6. Bxc6 {[%emt 0:03:26]} dxc6 {[%emt 0:00:20]} 7. d3 {[%emt 0:00:18]} Nd7 {[%emt 0:04:24]} 8. b3 {[%emt 0:05:33]} O-O {[%emt 0:00:31]} 9. Bb2 {[%emt 0:00:44]} f6 {[%emt 0:00:14]} 10. Nbd2 {[%emt 0:02:48]} Nc5 {[%emt 0:01:16] C85: Closed Ruy Lopez: Deferred Exchange Variation.} 11. h3 {[%emt 0:14:36] [#]} Be6 $146 {[%emt 0:01:33]} ({Predecessor:} 11... Ne6 12. Nc4 a5 13. a4 b6 14. Ne3 Rf7 15. Nf5 Bf8 16. Nh2 Nf4 17. Qf3 Bxf5 18. exf5 {1-0 (41) Sanal,V (2545)-Nyysti,S (2335) Batumi 2019}) 12. Qe2 {[%emt 0:02:11]} Bf7 {[%emt 0:03:38] The position is equal.} 13. Nh4 {[%emt 0:16:41]} Ne6 {[%emt 0:05:45]} 14. Nf5 {[%emt 0:05:19]} Bc5 {[%emt 0:04:39]} 15. Qg4 {[%emt 0:12:08] And now Nh6+ would win.} Qd7 $2 {[%emt 0:06:05] [#]} (15... Kh8 $11 {and Black is okay.}) 16. Nxg7 $1 $18 {[%emt 0:03:05][%mdl 512]} Kh8 {[%emt 0:01:25]} 17. Nxe6 {[%emt 0:04:28]} Bxe6 {[%emt 0:00:19] This bishop pair is nice.} 18. Qf3 {[%emt 0:06:34]} Rf7 {[%emt 0:03:57]} 19. Kh2 {[%emt 0:01:44]} Rg8 {[%emt 0:01:12]} 20. Nc4 {[%emt 0:04:13]} Rg5 {[%emt 0:04:15]} 21. Ne3 {[%emt 0:02:24]} Rf8 {[%emt 0:21:36]} (21... Bd4 $142) 22. Rg1 {[%emt 0:03:48]} Qg7 {[%emt 0:04:26]} 23. g4 {[%emt 0:05:22]} Rg8 {[%emt 0:04:21]} 24. Rg3 {[%emt 0:01:38]} Bxe3 $2 {[%emt 0:07:03] [#]} (24... Rf8 {is a better defense.} 25. Nf5 Bxf5) 25. Qxe3 {[%emt 0:02:04]} ({Less strong is} 25. fxe3 h5 $14) 25... Qe7 {[%emt 0:09:05]} 26. Rag1 {[%emt 0:00:43]} Rf8 {[%emt 0:03:15]} 27. f4 {[%emt 0:00:39]} exf4 {[%emt 0:00:54]} 28. Qxf4 {[%emt 0:00:06]} Kg8 {[%emt 0:01:02]} 29. Rf1 {[%emt 0:00:37][%cal Rb2f6]} Rf7 {[%emt 0:03:55]} (29... Rg6 30. Rgf3 Qd7) 30. Bxf6 {[%emt 0:00:27] Weighted Error Value: White=0.20 (precise) /Black=0.62} 1-0

[Event "Frauenbundesliga 2021-22"]
[Site "Germany"]
[Date "2022.05.26"]
[Round "3.7"]
[White "Abdumalik, Zhansaya"]
[Black "Cosma, Elena-Luminita"]
[Result "1-0"]
[ECO "C11"]
[WhiteElo "2489"]
[BlackElo "2277"]
[Annotator "TA"]
[PlyCount "121"]
[EventDate "2021.11.26"]
[EventType "team-tourn"]
[EventCountry "GER"]
[SourceTitle "playchess.com"]
[Source "ChessBase"]
[SourceQuality "1"]
[WhiteTeam "Baden-Baden"]
[BlackTeam "Hemer"]
[TimeControl "40/5400+30:1800+30"]

{[%evp 20,121,21,-18,-19,-51,-8,-12,86,73,47,52,82,74,102,105,100,94,100,86,89,76,88,66,74,60,89,84,91,78,83,69,127,79,85,52,83,89,108,101,167,125,153,120,115,127,112,82,88,70,129,149,226,219,215,209,237,106,181,207,284,173,219,208,208,186,333,345,470,308,546,340,322,238,377,184,161,110,129,113,350,345,310,279,271,0,284,175,362,204,614,600,711,711,29952,1289,29973,711,693,671,671,656,652,612]} 1. e4 {[%emt 0:00:03]} e6 {[%emt 0:00:06]} 2. d4 {[%emt 0:00:06]} d5 {[%emt 0:00:03]} 3. Nc3 {[%emt 0:00:09]} Nf6 {[%emt 0:00:05]} 4. e5 {[%emt 0:00:07]} Nfd7 {[%emt 0:00:07]} 5. f4 {[%emt 0:00:05]} c5 {[%emt 0:00:05]} 6. Nf3 {[%emt 0:00:05]} a6 {[%emt 0:00:06]} 7. Be3 {[%emt 0:00:11]} Qb6 {[%emt 0:00:22]} 8. Na4 {[%emt 0:03:59]} Qa5+ {[%emt 0:00:33]} 9. c3 {[%emt 0:00:06]} cxd4 {[%emt 0:00:17]} 10. b4 {[%emt 0:00:31]} Qc7 {[%emt 0:00:10]} 11. Bxd4 {[%emt 0:00:50]} (11. Nxd4 b5 12. Nc5 Bxc5 13. bxc5 Nxc5 $17) 11... Nc6 {[%emt 0:00:26] C11: French: Classical System: 4 e5 and 4 Bg5 dxe4.} 12. Be3 {[%emt 0:05:30]} Be7 {[%emt 0:17:47]} (12... b5 $5 {[%cal Rb5a4]} 13. Nb2 (13. Nc5 Nxc5 14. bxc5 Bd7 $17) 13... Ncxe5 $1 14. fxe5 Qxc3+ 15. Qd2 Bxb4 $11) 13. Bd3 {[%emt 0:03:54] [#]} O-O $146 {[%emt 0:29:25]} (13... b5 $11 {remains equal.} 14. Nb2 (14. Nc5 Nxc5 15. bxc5 Na5 $15) 14... Ncxe5 15. fxe5 Qxc3+ 16. Qd2 Bxb4) ({Predecessor:} 13... b5 14. Nb2 a5 15. a3 axb4 16. axb4 Rxa1 17. Qxa1 f6 18. Bxb5 fxe5 19. Bxc6 Qxc6 {0-1 (56) Martinez Alcantara,J (2477)-Sochacki,C (2457) Chess.com INT 2017}) 14. O-O $1 $16 {[%emt 0:01:36] White is more active.} b5 {[%emt 0:04:14]} 15. Nb2 {[%emt 0:00:18]} Nb6 {[%emt 0:00:04]} 16. a4 {[%emt 0:05:21][%cal Ba2a4,Ba4a5][%mdl 32]} Bd7 {[%emt 0:00:49]} 17. a5 $1 {[%emt 0:02:24]} (17. axb5 axb5 18. Qc2 (18. Bxb5 Rxa1 19. Qxa1 Ra8 $17) 18... g6 $14) 17... Nc4 {[%emt 0:02:46]} 18. Nxc4 {[%emt 0:01:15]} bxc4 {[%emt 0:00:34]} 19. Bb1 {[%emt 0:03:21]} f5 {[%emt 0:02:50]} 20. exf6 {[%emt 0:04:46]} Bxf6 {[%emt 0:01:15]} 21. Ra2 {[%emt 0:00:31]} (21. Qc2 $6 g6 $11) 21... g6 {[%emt 0:03:49]} (21... Bxc3 $2 22. Qc2 g6 23. Qxc3 $18) 22. Qd2 {[%emt 0:05:28]} Rae8 {[%emt 0:04:29]} 23. Bb6 {[%emt 0:05:36]} Qb7 {[%emt 0:01:50]} 24. h4 {[%emt 0:01:16]} Bc8 {[%emt 0:04:51]} 25. Bc5 {[%emt 0:02:30]} Qg7 {[%emt 0:07:52]} (25... Be7 $14) 26. Rc2 {[%emt 0:05:41]} (26. Bxf8 $142 Rxf8 27. Rc2) 26... Be7 {[%emt 0:03:28]} 27. Be3 {[%emt 0:00:53]} Rd8 {[%emt 0:01:19]} 28. Rcc1 {[%emt 0:03:44]} Bf6 {[%emt 0:00:53]} 29. Bb6 {[%emt 0:02:01]} d4 {[%emt 0:03:51]} (29... Rde8 $16 {was worth a try.}) 30. Bxd8 {[%emt 0:00:19]} Rxd8 {[%emt 0:00:48]} 31. cxd4 {[%emt 0:01:26]} Nxd4 {[%emt 0:00:56]} 32. Qe1 {[%emt 0:00:32]} Bb7 {[%emt 0:07:01]} 33. Ne5 {[%emt 0:04:27]} (33. Rxc4 Bd5 34. Rc1 Nxf3+ 35. gxf3 (35. Rxf3 Bxf3 36. Qxe6+ Kf8 $11) 35... Qh6) 33... Bd5 {[%emt 0:00:31]} 34. Rc3 {[%emt 0:01:49]} (34. Nxc4 $6 Nb3 35. Ne3 (35. Rc2 Nd4 $11) 35... Nxc1 36. Nxd5 exd5 $11) 34... Nc6 {[%emt 0:02:26]} (34... Rb8 $14) 35. Re3 {[%emt 0:02:27]} Qa7 {[%emt 0:00:11]} (35... Nd4 $16) 36. Nxc6 $1 $18 {[%emt 0:06:24]} Bxc6 {[%emt 0:00:06] This bishop pair is nice.} 37. Kh2 {[%emt 0:00:09]} Bd5 {[%emt 0:00:20] [#]} 38. Rh3 {[%emt 0:02:14]} (38. Be4 $1 $18) 38... Qb7 {[%emt 0:01:00]} (38... Qf7 $16) 39. h5 {[%emt 0:00:22]} Rd7 {[%emt 0:00:34]} (39... Bxg2 $2 40. Qxe6+ Qf7 41. Qxf7+ Kxf7 42. hxg6+ hxg6 43. Kxg2 $18) 40. Rff3 {[%emt 0:02:39][%cal Oh5g6]} Rg7 {[%emt 0:00:58]} (40... Re7 $142) 41. hxg6 {[%emt 0:30:30]} hxg6 {[%emt 0:30:20]} 42. Rfg3 {[%emt 0:00:33]} Qc7 {[%emt 0:00:00]} (42... c3 $142 43. Bxg6 (43. Rxg6 Qxb4 44. Rxg7+ Bxg7 $16) 43... Qxb4) 43. Be4 {[%emt 0:00:00] Threatens to win with Bxd5.} Kf7 {[%emt 0:00:00]} (43... Qxf4 $2 44. Bxd5 Qe5 45. Qxe5 Bxe5 46. Bxe6+ Kf8 47. Rh8+ Ke7 {[#]} 48. Bxc4 $1 $18) 44. Rh8 {[%emt 0:00:00] Hoping for Bxd5.} Qc6 {[%emt 0:00:00]} (44... Qd7 {was called for.} 45. Bc2 Bc6) 45. Bc2 {[%emt 0:00:00][%cal Oc2g6]} Qd6 {[%emt 0:00:00]} 46. Qe3 {[%emt 0:00:00][%cal Oc2g6] And now Bxg6+! would win.} g5 {[%emt 0:00:00]} (46... Qxb4 {is a better defense.} 47. Rh6 c3 48. Qa7+ (48. Rhxg6 Rh7+ 49. Rh3 Rxh3+ 50. Kxh3 Qd4 $18) (48. Rgxg6 Rxg6 49. Rxg6 Bb3 $16) 48... Qb7) 47. Qa7+ {[%emt 0:00:00]} (47. Rg4 $142) 47... Be7 {[%emt 0:00:00]} 48. f5 {[%emt 0:00:00]} (48. fxg5 $18 {White wants to mate with Qf2+.} Rxg5 49. Qf2+ Bf6 50. Rh7+ (50. Rf8+ $2 Qxf8 51. Qa7+ Qe7 $19) 50... Kg8 51. Kh3 Rxg3+ 52. Qxg3+ Qxg3+ 53. Kxg3) 48... exf5 $16 {[%emt 0:02:34]} 49. Bxf5 {[%emt 0:00:00]} c3 $2 {[%emt 0:00:16]} (49... Rg8 $16 50. Rh7+ Rg7) 50. Bc2 $18 {[%emt 0:00:00]} Rg8 {[%emt 0:01:05]} 51. Rh7+ {[%emt 0:00:00]} Rg7 {[%emt 0:00:16]} 52. Rh8 {[%emt 0:00:00]} Rg8 {[%emt 0:00:04]} 53. Rh5 {[%emt 0:00:00] aiming for Qe3.} Rg7 $2 {[%emt 0:00:38]} (53... Kf8 54. Rh7 Rg7) 54. Qf2+ {[%emt 0:00:00]} (54. Qe3 $142) 54... Bf6 $2 {[%emt 0:00:10]} (54... Qf6 55. Qa7 Qf4) 55. Rh6 {[%emt 0:00:00]} g4 {[%emt 0:01:59]} 56. Kg1 {[%emt 0:00:00] Black must now prevent Rxc3.} Qc6 {[%emt 0:01:13]} 57. Rd3 {[%emt 0:00:00]} (57. Re3 $142 Rg5 58. Qg3 Bxg2 59. Rxf6+ Qxf6 60. Qc7+ Kf8 61. Qc8+ Kg7 62. Qd7+ Qf7 63. Qd4+ Re5 64. Qxe5+ Qf6 65. Qc7+ Qf7 66. Qxc3+ Kg8 67. Qc8+ Kg7 68. Qxg4+ Kf8 69. Qc8+ Kg7 70. Rg3+ Kf6 71. Qd8+ Ke6 72. Re3+ Be4 73. Rxe4+ Kf5 74. Rd4+ Ke6 75. Qd6#) 57... g3 {[%emt 0:00:24]} 58. Qxf6+ {[%emt 0:00:27]} Qxf6 {[%emt 0:00:37] White is clearly winning.} 59. Rxf6+ {[%emt 0:00:02]} Kxf6 {[%emt 0:00:30]} 60. Rxd5 {[%emt 0:00:07]} Re7 {[%emt 0:00:30][%cal Re7e1]} 61. Rf5+ {[%emt 0:00:12] Weighted Error Value: White=0.38/Black=0.80} 1-0

[Event "Frauenbundesliga 2021-22"]
[Site "Germany"]
[Date "2022.05.26"]
[Round "3.8"]
[White "Ciolacu, Alessia-Mihaela"]
[Black "Stefanova, Antoaneta"]
[Result "1/2-1/2"]
[ECO "A84"]
[WhiteElo "2198"]
[BlackElo "2458"]
[Annotator "TA"]
[PlyCount "75"]
[EventDate "2021.11.26"]
[EventType "team-tourn"]
[EventCountry "GER"]
[SourceTitle "playchess.com"]
[Source "ChessBase"]
[SourceQuality "1"]
[WhiteTeam "Hemer"]
[BlackTeam "Baden-Baden"]
[TimeControl "40/5400+30:1800+30"]

{[%evp 14,75,41,26,37,14,16,22,31,24,57,24,52,38,44,58,58,33,61,64,49,49,53,54,60,33,53,60,58,-40,-18,-14,0,0,0,0,0,0,27,18,21,23,71,43,41,44,64,77,171,164,154,95,106,106,82,53,232,176,188,0,225,0,183,0]} 1. d4 {[%emt 0:00:04]} d5 {[%emt 0:00:07]} 2. c4 {[%emt 0:00:08]} c6 {[%emt 0:00:05]} 3. Nf3 {[%emt 0:00:09]} e6 {[%emt 0:00:05]} 4. e3 {[%emt 0:00:06]} Bd6 {[%emt 0:01:20]} 5. b3 {[%emt 0:00:26]} f5 {[%emt 0:06:47]} 6. Bd3 {[%emt 0:02:41]} Nf6 {[%emt 0:09:47]} 7. O-O {[%emt 0:00:21]} Qe7 {[%emt 0:00:10]} 8. Bb2 {[%emt 0:01:13]} b6 {[%emt 0:02:55] A84: Dutch Defence: 2 c4 Miscellaneous.} 9. Qc1 {[%emt 0:12:42]} O-O {[%emt 0:07:32]} 10. Ba3 {[%emt 0:02:56]} c5 {[%emt 0:01:54] The position is equal.} 11. cxd5 {[%emt 0:07:43]} exd5 {[%emt 0:01:11] has lost popularity (11...Nxd5).} 12. dxc5 {[%emt 0:02:00]} bxc5 {[%emt 0:00:41]} 13. Nc3 {[%emt 0:01:37][%cal Bb1c3,Bc3b5,Bb5d4,Bd4c6][%mdl 32]} Na6 {[%emt 0:01:17][%cal Bb8a6,Ba6b4,Bb4c2][%mdl 32]} 14. Nb5 {[%emt 0:10:27]} Bb8 {[%emt 0:05:35]} 15. Nbd4 {[%emt 0:01:16] [#]} Ne4 $146 {[%emt 0:09:19]} ({Predecessor:} 15... Ng4 16. Nc6 Qc7 17. Nxb8 Rxb8 18. Bb2 Re8 19. Rd1 Nb4 20. Be2 Nf6 21. a3 Nc6 22. b4 cxb4 23. axb4 {1-0 (23) Eryomenko,V (2151)-Sumets,A (2438) Odessa 2001}) 16. Nc6 {[%emt 0:01:39]} Qd6 {[%emt 0:02:38]} 17. Nxb8 {[%emt 0:00:16]} Rxb8 {[%emt 0:00:04]} 18. Rd1 {[%emt 0:07:00]} Nb4 {[%emt 0:02:17]} 19. Be2 {[%emt 0:01:55]} (19. Bf1 $5 {[%cal Ra3b2]}) 19... Ba6 {[%emt 0:03:14]} 20. Bxa6 {[%emt 0:01:23]} Qxa6 {[%emt 0:00:15]} 21. Ne5 {[%emt 0:10:07] Against Nd3} (21. Bxb4 $14 cxb4 22. Qb2) 21... Qe2 $15 {[%emt 0:06:59][%csl LRa2,LRf2]} 22. Rf1 {[%emt 0:11:01]} Nc2 {[%emt 0:05:12] Pair of Knights!} 23. Rb1 {[%emt 0:02:07] Black must now prevent Rb2.} Nxa3 {[%emt 0:08:14]} 24. Qxa3 {[%emt 0:00:17] Strongly threatening Nd7.} f4 {[%emt 0:01:22]} 25. Rbe1 {[%emt 0:14:11]} Qb5 {[%emt 0:13:16]} (25... Qh5 $5 {[%cal Rh5e5]} 26. exf4 Rxf4 $11) 26. f3 {[%emt 0:00:55]} ({Of course not} 26. Qxa7 Nd2 27. exf4 Nxf1 28. Rxf1 Rb7 $17) 26... Nc3 {[%emt 0:03:49] aiming for ...Ne2+.} 27. exf4 {[%emt 0:01:58]} Ne2+ {[%emt 0:00:47] [#]} (27... a5 $11) 28. Rxe2 $1 $16 {[%emt 0:01:49]} Qxe2 {[%emt 0:00:05]} 29. Nd7 {[%emt 0:00:06]} Qe3+ {[%emt 0:02:51]} 30. Kh1 {[%emt 0:03:25]} c4 {[%emt 0:00:47]} 31. Nxb8 $18 {[%emt 0:00:43]} Qd3 {[%emt 0:02:33][%cal Rd3f1] [#]} 32. Rc1 {[%emt 0:01:44]} Rxb8 $16 {[%emt 0:00:47]} 33. Qxa7 $40 {[%emt 0:00:06][%mdl 128] KQR-KQR. Black is in trouble.} Re8 {[%emt 0:01:49]} 34. Qd7 {[%emt 0:00:28][%cal Rd7e8]} Kf8 {[%emt 0:00:56]} (34... Re2 $1 $14) 35. Qd6+ {[%emt 0:02:18]} Kg8 {[%emt 0:00:01]} 36. Qd7 {[%emt 0:00:10][%cal Rd7e8]} Kf8 {[%emt 0:00:01]} 37. Qd6+ {[%emt 0:00:37]} Kg8 {[%emt 0:00:06]} 38. Qd7 $2 {[%emt 0:00:17] Weighted Error Value: White=0.25 (precise) /Black=0.19 (very precise)} ({White should play} 38. Qc6 $18 {[%cal Rc6e8]} Re7 39. Qc8+ (39. bxc4 Qxc4 40. Qxc4 dxc4 $18) 39... Kf7 40. bxc4) 1/2-1/2